Workbook

Sheet Straight Salary (hidden)
A2: INDICATIVE LW REMUNERATION
A3: (To be used as a guide only)
A5: STRAIGHT SALARY METHOD
A6: Components Per Annum | B6: Monthly Allocation | C6: LW Cost [ANNUALISED]
A7: Base | C7: 55000
A8: Super | C8: =C7*9.5/100 -> 5225
A9: Ordinary Earnings | C9: =SUM(C7:C8) -> 60225
A11: Other LW Costs (not mandatory)
A12: Car | B12: 200 | C12: =SUM(B12)*12 -> 2400
A13: Phone | B13: 300 | C13: =SUM(B13)*12 -> 3600
A14: Computer/Laptop | C14: 1440
A15: Internet access/usage | B15: 100 | C15: =SUM(B15)*12 -> 1200
A16: Credit Rep Fee | B16: 163 | C16: =SUM(B16)*12 -> 1956
A17: Connective Fee | B17: 0 | C17: =SUM(B17)*12 -> 0
A18: LAM Budget | B18: 0 | C18: =SUM(B18)*12 -> 0
A19: Other Costs | B19: 0 | C19: =SUM(B19)*12 -> 0
A20: TOTAL LW EMPLOYMENT COST | C20: =SUM(C9:C19) -> 70821
A22: INDICATIVE BREAKEVEN EXERCISE
A23: (To be used as a guide only)
A25: Average Mth Settlements | B25: 2000000
D27: Avg Commission Rates
A28: Apportionment | B28: % of Writings | C28: Mth Volume | D28: Upfront | E28: Trail
A29: Advantedge | B29: 0.35 | C29: =SUM($B$25)*B29 -> 700000 | D29: 0.0057 | E29: 0.00143
A30: Firstmac | B30: 0.2 | C30: =SUM($B$25)*B30 -> 400000 | D30: 0.0057 | E30: 0.00143
A31: Pepper | B31: 0.15 | C31: =SUM($B$25)*B31 -> 300000 | D31: 0.0067 | E31: 0.00143
A32: SCCU | B32: 0.25 | C32: =SUM($B$25)*B32 -> 500000 | D32: 0.0057 | E32: 0.0015
A33: Alternate | B33: 0.05 | C33: =SUM($B$25)*B33 -> 100000 | D33: 0.0058 | E33: 0.0018
A34: Total | B34: =SUM(B29:B33) -> 1 | C34: =SUM(C29:C33) -> 2000000
A36: Estimated Cashflow
B37: Monthly | C37: Annualised
A38: Upfront
A39: Advantedge | B39: =SUM(C29)*D29 -> 3990 | C39: =SUM(B39)*12 -> 47880
A40: Firstmac | B40: =SUM(C30)*D30 -> 2280 | C40: =SUM(B40)*12 -> 27360
A41: Pepper | B41: =SUM(C31)*D31 -> 2010 | C41: 24120
A42: SCCU | B42: =SUM(C32)*D32 -> 2850 | C42: 34200
A43: Alternate | B43: =SUM(C33)*D33 -> 580 | C43: 6960
A45: Trail
A46: Advantedge | B46: =SUM(C29*E29)/12 -> 83.41666667 | C46: 1001
A47: Firstmac | B47: =SUM(C30*E30)/12 -> 47.66666667 | C47: 572
A48: Pepper | B48: =SUM(C31*E31)/12 -> 35.75 | C48: 429
A49: SCCU | B49: =SUM(C32*E32)/12 -> 62.5 | C49: 750
A50: Alternate | B50: =SUM(C33*E33)/12 -> 15 | C50: 180
A52: Total Estimated Income | B52: =SUM(B39:B50) -> 11954.33333 | C52: =SUM(C39:C50) -> 143452
A54: Surplus / Deficit | C54: =SUM(C52)-C20 -> 72631
A56: *Note: The above numbers don't take into account compounding effect of ongoing trail.
A58: Disclaimer: This calculator is for internal purposes only and is to be used as a guide. Any decision made off the back of the numbers emanating from this calculator shall be the responsibility of the user. Whilst every effort has been made to ensure the accuracy of this calculator LJ Hooker Home Loans does not guarantee its workings.

Sheet Salary plus Commission
A2: INDICATIVE LW REMUNERATION
A3: (To be used as a guide only)
A5: SALARY plus COMMISSION METHOD
A6: Components Per Annum | B6: Monthly Allocation | C6: LW Cost [ANNUALISED]
A7: Base | C7: 70000
A8: Super | C8: =C7*9.5/100 -> 6650
A9: Ordinary Earnings | C9: =SUM(C7:C8) -> 76650
A11: Other LW Costs (not mandatory)
A12: Car | B12: 0 | C12: =SUM(B12)*12 -> 0
A13: Phone | B13: 300 | C13: =SUM(B13)*12 -> 3600
A14: Computer/Laptop | C14: 1440
A15: Internet access/usage | B15: 100 | C15: =SUM(B15)*12 -> 1200
A16: Credit Rep Fee | B16: 220 | C16: =SUM(B16)*12 -> 2640
A17: Connective Fee | B17: 330 | C17: =SUM(B17)*12 -> 3960
A18: LAM Budget | B18: 0 | C18: =SUM(B18)*12 -> 0
A19: Other Costs | B19: 495 | C19: =SUM(B19)*12 -> 5940
A21: Commission Earned | B21: =(B28-VLOOKUP(B28,SalaryPlusCommissionTable,1,TRUE))*VLOOKUP(B28,SalaryPlusCommissionTable,2,TRUE)+VLOOKUP(B28,SalaryPlusCommissionTable,3,TRUE) -> 1125 | C21: =SUM(B21)*12 -> 13500
A23: TOTAL LW COST | C23: =SUM(C9:C21) -> 108930
A25: INDICATIVE BREAKEVEN EXERCISE
A26: (To be used as a guide only)
A28: Average Mth Settlements | B28: 2000000
D30: Avg Commission Rates
A31: Apportionment | B31: % of Writings | C31: Mth Volume | D31: Upfront | E31: Trail
A32: Advantedge | B32: 0.4 | C32: =SUM($B$28)*B32 -> 800000 | D32: 0.0065 | E32: 0.0015
A33: Firstmac | B33: 0.1 | C33: =SUM($B$28)*B33 -> 200000 | D33: 0.0065 | E33: 0.0015
A34: Pepper | B34: 0.15 | C34: =SUM($B$28)*B34 -> 300000 | D34: 0.0065 | E34: 0.0015
A35: Brighten | B35: 0.05 | C35: =SUM($B$28)*B35 -> 100000 | D35: 0.0065 | E35: 0.0015
A36: Auswide | B36: 0.05 | C36: 100000 | D36: 0.0065 | E36: 0.0015
A37: SCCU | B37: 0.15 | C37: =SUM($B$28)*B37 -> 300000 | D37: 0.0065 | E37: 0.0015
A38: Alternate | B38: 0.1 | C38: =SUM($B$28)*B38 -> 200000 | D38: 0.0057 | E38: 0.0013
A39: Total | B39: =SUM(B32:B38) -> 1 | C39: =SUM(C32:C38) -> 2000000
A41: Estimated Cashflow
B42: Monthly | C42: Annualised
A43: Upfront
A44: Advantedge | B44: =SUM(C32)*D32 -> 5200 | C44: =SUM(B44)*12 -> 62400
A45: Firstmac | B45: =SUM(C33)*D33 -> 1300 | C45: =SUM(B45)*12 -> 15600
A46: Pepper | B46: =SUM(C34)*D34 -> 1950 | C46: 23400
A47: SCCU | B47: =SUM(C37)*D37 -> 1950 | C47: 23400
A48: Alternate | B48: =SUM(C38)*D38 -> 1140 | C48: 13680
A50: Trail
A51: Advantedge | B51: =SUM(C32*E32)/12 -> 100 | C51: 1200
A52: Firstmac | B52: =SUM(C33*E33)/12 -> 25 | C52: 300
A53: Pepper | B53: =SUM(C34*E34)/12 -> 37.5 | C53: 450
A54: SCCU | B54: =SUM(C37*E37)/12 -> 37.5 | C54: 450
A55: Alternate | B55: =SUM(C38*E38)/12 -> 21.66666667 | C55: 260
A57: Total Estimated Income | B57: =SUM(B44:B55) -> 11761.66667 | C57: =SUM(C44:C55) -> 141140
A59: Surplus / Deficit | C59: =SUM(C57)-C23 -> 32210
A61: *Note: The above numbers don't take into account compounding effect of ongoing trail.
A64: Commission Table | B64: Band | C64: Marginal Rate | D64: Previous Bands Total Commission
A65: $0 to $999,999 | B65: 0 | C65: 0 | D65: 0
A66: $1,000,000 to $1,499,999 | B66: 1000000 | C66: 0.001 | D66: 0
A67: $1,500,000 to $1,999,999 | B67: =B66+500000 -> 1500000 | C67: 0.00125 | D67: =(B67-B66)*C66 -> 500
A68: $2,000,000 to $2,499,999 | B68: =B67+500000 -> 2000000 | C68: 0.0015 | D68: =(B68-B67)*C67+D67 -> 1125
A69: $2,500,000 to $2,999,999 | B69: 2500000 | C69: 0.00175 | D69: =(B69-B68)*C68+D68 -> 1875
A70: $3,000,000 to $3,499,999 | B70: 3000000 | C70: 0.002 | D70: 2750
A71: $3,500,000 to $3,999,999 | B71: 3500000 | C71: 0.00225 | D71: 3750
A72: $4,000,000 to $4,499,999 | B72: 4000000 | C72: 0.0025 | D72: 4875
A73: $4,500,000 to $4,999,999 | B73: 4500000 | C73: 0.00275 | D73: 6125
A74: $5,000,000 + | B74: 5000000 | C74: 0.003 | D74: 7500
A76: Disclaimer: This calculator is for internal purposes only and is to be used as a guide. Any decision made off the back of the numbers emanating from this calculator shall be the responsibility of the user. Whilst every effort has been made to ensure the accuracy of this calculator LJ Hooker Home Loans does not guarantee its workings.

Sheet Commission Only (hidden)
A2: INDICATIVE LW REMUNERATION
A3: (To be used as a guide only)
A5: COMMISSION ONLY METHOD
A6: Applicable LW Costs (not mandatory) | B6: Monthly Allocation | C6: LW Cost [ANNUALISED]
A7: Car | B7: 0 | C7: =SUM(B7)*12 -> 0
A8: Phone | B8: 300 | C8: =SUM(B8)*12 -> 3600
A9: Computer/Laptop | C9: 1440
A10: Internet access/usage | B10: 100 | C10: =SUM(B10)*12 -> 1200
A11: Credit Rep Fee | B11: 163 | C11: =SUM(B11)*12 -> 1956
A12: Connective Fee | B12: 0 | C12: =SUM(B12)*12 -> 0
A13: LAM Budget | B13: 0 | C13: =SUM(B13)*12 -> 0
A14: Other Costs | B14: 0 | C14: =SUM(B14)*12 -> 0
A16: Commission Earned | B16: =(B23-VLOOKUP(B23,CommissionOnlyTable,1,TRUE))*VLOOKUP(B23,CommissionOnlyTable,2,TRUE)+VLOOKUP(B23,CommissionOnlyTable,3,TRUE) -> 5640 | C16: =SUM(B16)*12 -> 67680
A18: TOTAL LW COST | C18: =SUM(C7:C16) -> 75876
A20: INDICATIVE BREAKEVEN EXERCISE
A21: (To be used as a guide only)
A23: Average Mth Settlements | B23: 2000000
D25: Avg Commission Rates
A26: Apportionment | B26: % of Writings | C26: Mth Volume | D26: Upfront | E26: Trail
A27: Advantedge | B27: 0.35 | C27: =SUM($B$23)*B27 -> 700000 | D27: 0.0057 | E27: 0.00143
A28: Firstmac | B28: 0.2 | C28: =SUM($B$23)*B28 -> 400000 | D28: 0.0057 | E28: 0.00143
A29: Pepper | B29: 0.15 | C29: =SUM($B$23)*B29 -> 300000 | D29: 0.0067 | E29: 0.00143
A30: SCCU | B30: 0.25 | C30: =SUM($B$23)*B30 -> 500000 | D30: 0.0057 | E30: 0.0015
A31: Alternate | B31: 0.05 | C31: =SUM($B$23)*B31 -> 100000 | D31: 0.0058 | E31: 0.0018
A32: Total | B32: =SUM(B27:B31) -> 1 | C32: =SUM(C27:C31) -> 2000000
A34: Estimated Cashflow
B35: Monthly | C35: Annualised
A36: Upfront
A37: Advantedge | B37: =SUM(C27)*D27 -> 3990 | C37: =SUM(B37)*12 -> 47880
A38: Firstmac | B38: =SUM(C28)*D28 -> 2280 | C38: =SUM(B38)*12 -> 27360
A39: Pepper | B39: =SUM(C29)*D29 -> 2010 | C39: 24120
A40: SCCU | B40: =SUM(C30)*D30 -> 2850 | C40: 34200
A41: Alternate | B41: =SUM(C31)*D31 -> 580 | C41: 6960
A43: Trail
A44: Advantedge | B44: =SUM(C27*E27)/12 -> 83.41666667 | C44: 1001
A45: Firstmac | B45: =SUM(C28*E28)/12 -> 47.66666667 | C45: 572
A46: Pepper | B46: =SUM(C29*E29)/12 -> 35.75 | C46: 429
A47: SCCU | B47: =SUM(C30*E30)/12 -> 62.5 | C47: 750
A48: Alternate | B48: =SUM(C31*E31)/12 -> 15 | C48: 180
A50: Total Estimated Income | B50: =SUM(B37:B48) -> 11954.33333 | C50: =SUM(C37:C48) -> 143452
A52: Surplus / Deficit | C52: =SUM(C50)-C18 -> 67576
A54: *Note: The above numbers don't take into account compounding effect of ongoing trail.
A57: Commission Table | B57: Band | C57: Marginal Rate | D57: Previous Bands Total Commission
A58: $0 to $999,999 | B58: 0 | C58: 0.00282 | D58: 0
A59: $1,000,000 to $1,499,999 | B59: 1000000 | C59: 0.00282 | D59: =(B59-B58)*C58 -> 2820
A60: $1,500,000 to $1,999,999 | B60: =B59+500000 -> 1500000 | C60: 0.00282 | D60: =(B60-B59)*C59+D59 -> 4230
A61: $2,000,000 to $2,499,999 | B61: =B60+500000 -> 2000000 | C61: 0.00282 | D61: =(B61-B60)*C60+D60 -> 5640
A62: $2,500,000 to $2,999,999 | B62: 2500000 | C62: 0.00282 | D62: =(B62-B61)*C61+D61 -> 7050
A63: $3,000,000 to $3,499,999 | B63: 3000000 | C63: 0.00282 | D63: 8460
A64: $3,500,000 to $3,999,999 | B64: 3500000 | C64: 0.00282 | D64: 9870
A65: $4,000,000 to $4,499,999 | B65: 4000000 | C65: 0.00282 | D65: 11280
A66: $4,500,000 to $4,999,999 | B66: 4500000 | C66: 0.00282 | D66: 12690
A67: $5,000,000 + | B67: 5000000 | C67: 0.00282 | D67: 14100
A69: Disclaimer: This calculator is for internal purposes only and is to be used as a guide. Any decision made off the back of the numbers emanating from this calculator shall be the responsibility of the user. Whilst every effort has been made to ensure the accuracy of this calculator LJ Hooker Home Loans does not guarantee its workings.

Sheet Base plus Performance Bonus (hidden)
A2: INDICATIVE LW REMUNERATION
A3: (To be used as a guide only)
A5: BASE plus PERFORMANCE BONUS METHOD
A6: Components Per Annum | B6: Monthly LW Cost Allocation | C6: LW Cost [ANNUALISED]
A7: Base | C7: 50000
A8: Super | C8: =C7*9.5/100 -> 4750
A9: Ordinary Earnings | C9: =SUM(C7:C8) -> 54750
A11: Other LW Costs (not mandatory)
A12: Car | B12: 200 | C12: =SUM(B12)*12 -> 2400
A13: Phone | B13: 300 | C13: =SUM(B13)*12 -> 3600
A14: Computer/Laptop | C14: 1440
A15: Internet access/usage | B15: 100 | C15: =SUM(B15)*12 -> 1200
A16: Credit Rep Fee | B16: 163 | C16: =SUM(B16)*12 -> 1956
A17: Connective Fee | B17: 0 | C17: =SUM(B17)*12 -> 0
A18: LAM Budget | B18: 0 | C18: =SUM(B18)*12 -> 0
A19: Other Costs | B19: 0 | C19: =SUM(B19)*12 -> 0
A21: Qtrly Performance Bonus | B21: =(B28-VLOOKUP(B28,CommissionTable,1,TRUE))*VLOOKUP(B28,CommissionTable,2,TRUE)+VLOOKUP(B28,CommissionTable,3,TRUE) -> 7625 | C21: =SUM(B21)*4 -> 30500
A23: TOTAL LW EMPLOYMENT COST | C23: =SUM(C9:C21) -> 95846
A25: INDICATIVE BREAKEVEN EXERCISE
A26: (To be used as a guide only)
A28: Quarterly Settlements | B28: 7100000
D30: Avg Commission Rates
A31: Apportionment | B31: % of Writings | C31: Qtrly Volume | D31: Upfront | E31: Trail
A32: Advantedge | B32: 0.35 | C32: =SUM($B$28)*B32 -> 2485000 | D32: 0.0057 | E32: 0.00143
A33: Firstmac | B33: 0.2 | C33: =SUM($B$28)*B33 -> 1420000 | D33: 0.0057 | E33: 0.00143
A34: Pepper | B34: 0.15 | C34: =SUM($B$28)*B34 -> 1065000 | D34: 0.0067 | E34: 0.00143
A35: SCCU | B35: 0.25 | C35: =SUM($B$28)*B35 -> 1775000 | D35: 0.0057 | E35: 0.0015
A36: Alternate | B36: 0.05 | C36: =SUM($B$28)*B36 -> 355000 | D36: 0.0058 | E36: 0.0018
A37: Total | B37: =SUM(B32:B36) -> 1 | C37: =SUM(C32:C36) -> 7100000
A39: Estimated Cashflow
B40: Quarterly | C40: Annualised
A41: Upfront
A42: Advantedge | B42: =SUM(C32)*D32 -> 14164.5 | C42: =SUM(B42)*4 -> 56658
A43: Firstmac | B43: =SUM(C33)*D33 -> 8094 | C43: =SUM(B43)*4 -> 32376
A44: Pepper | B44: =SUM(C34)*D34 -> 7135.5 | C44: =SUM(B44)*4 -> 28542
A45: SCCU | B45: =SUM(C35)*D35 -> 10117.5 | C45: 40470
A46: Alternate | B46: =SUM(C36)*D36 -> 2059 | C46: 8236
A48: Trail
A49: Advantedge | B49: =SUM(C32*E32)/12 -> 296.1291667 | C49: =SUM(B49)*12 -> 3553.55
A50: Firstmac | B50: =SUM(C33*E33)/12 -> 169.2166667 | C50: 2030.6
A51: Pepper | B51: =SUM(C34*E34)/12 -> 126.9125 | C51: 1522.95
A52: SCCU | B52: =SUM(C35*E35)/12 -> 221.875 | C52: 2662.5
A53: Alternate | B53: =SUM(C36*E36)/12 -> 53.25 | C53: 639
A55: Total Estimated Income | B55: =SUM(B42:B53) -> 42437.88333 | C55: =SUM(C42:C53) -> 176690.6
A57: Surplus / Deficit | C57: =SUM(C55)-C23 -> 80844.6
A59: *Note: The above numbers don't take into account compounding effect of ongoing trail.
A62: Quarterly Performance Bonus | B62: Band | C62: Marginal Rate | D62: Previous Bands Total Commission
A63: $0 to $999,999 | B63: 0 | C63: 0 | D63: 0
A64: $3,000,000 to $5,000,000 | B64: 3000000 | C64: 0.001 | D64: =SUM(B64-B63)*C64 -> 3000
A65: $5,000,000 to $8,000,000 | B65: 5000000 | C65: 0.00125 | D65: =(B65-B64)*C64+D64 -> 5000
A66: $8,000,000 to $10,000,000 | B66: 8000000 | C66: 0.0015 | D66: =(B66-B65)*C65+D65 -> 8750
A67: $10,000,000 + | B67: 10000000 | C67: 0.003 | D67: =(B67-B66)*C66+D66 -> 11750
A69: Disclaimer: This calculator is for internal purposes only and is to be used as a guide. Any decision made off the back of the numbers emanating from this calculator shall be the responsibility of the user. Whilst every effort has been made to ensure the accuracy of this calculator LJ Hooker Home Loans does not guarantee its workings.

Sheet Commission Only LW (hidden)
A2: INDICATIVE LW REMUNERATION
A3: (To be used as a guide only)
A5: COMMISSION ONLY METHOD [Upfront only - No Trail]
A6: Applicable LW Costs (not mandatory) | B6: Monthly Allocation | C6: LW Cost [ANNUALISED]
A7: Car | B7: 0 | C7: =SUM(B7)*12 -> 0
A8: Phone | B8: 300 | C8: =SUM(B8)*12 -> 3600
A9: Computer/Laptop | C9: 1000
A10: Internet access/usage | B10: 100 | C10: =SUM(B10)*12 -> 1200
A11: Credit Rep Fee | B11: 220 | C11: =SUM(B11)*12 -> 2640
A12: Connective Fee | B12: 330 | C12: =SUM(B12)*12 -> 3960
A13: LPT | B13: 0
A14: CoreLogic | B14: 0
A15: LAM Budget | B15: 0 | C15: =SUM(B15)*12 -> 0
A16: Other Costs | B16: 0 | C16: =SUM(B16)*12 -> 0
A18: Commission Earned | B18: =SUM(C54:C57) -> 6608 | C18: =SUM(B18)*12 -> 79296
A20: TOTAL LW COST | C20: =SUM(C7:C18) -> 91696
A22: INDICATIVE BREAKEVEN EXERCISE
A23: (To be used as a guide only)
A25: Average Mth Settlements | B25: 4000000
A27: Self Gen vs LJHHL Lead | B27: Self Gen | C27: LJHHL
A28: Commission Split of Upfronts | B28: 0.65 | C28: 0.35
A30: Apportionment | B30: % of Writings | C30: Mth Volume
A31: WL - Self Gen | B31: 0 | C31: =SUM($B$25)*B31 -> 0
A32: WL - LJHHL Lead | B32: 0 | C32: =SUM($B$25)*B32 -> 0
A33: Alternate - Self Gen | B33: 0 | C33: 0
A34: Alternate - LJHHL Lead | B34: 1 | C34: =SUM($B$25)*B34 -> 4000000
A35: Total | B35: =SUM(B31:B34) -> 1 | C35: =SUM(C31:C34) -> 4000000
A37: Estimated Cashflow
B38: Monthly | C38: Annualised
A39: Upfront
A40: WL | B40: =SUM(C31:C32)*E56 -> 0 | C40: =SUM(B40)*12 -> 0
A41: Alternate | B41: =SUM(C33:C34)*E57 -> 22880 | C41: =SUM(B41)*12 -> 274560
A43: Trail
A44: WL | B44: =SUM(C31:C32)*F56 -> 0 | C44: 0
A45: Alternate | B45: =SUM(C33:C34)*F57 -> 7040 | C45: 84480
A47: Total Estimated Income | B47: =SUM(B40:B45) -> 29920 | C47: =SUM(C40:C45) -> 359040
A49: Surplus / Deficit | C49: =SUM(C47)-C20 -> 267344
A51: *Note: The above numbers don't take into account compounding effect of ongoing trail or higher Pepper upfront.
A53: Commission Table | B53: Marginal Rate | C53: Previous Bands Total Commission | D53: Avg Commission Rates
A54: Self Generated WL | B54: =SUM(E56)*B28 -> 0.003055 | C54: =SUM(C31)*B54 -> 0 | D54: Type | E54: Upfront | F54: Trail
A55: Self Generated Alternate | B55: =SUM(E58)*B28 -> 0.003068 | C55: =SUM(C33)*B55 -> 0 | D55: WL Gross | E55: 0.0057 | F55: 0.00143
A56: LJH HL Leads WL | B56: =SUM(E56)*C28 -> 0.001645 | C56: =SUM(C32)*B56 -> 0 | D56: WL Net | E56: 0.0047 | F56: 0.00143
A57: LJH HL Leads Alternate | B57: =SUM(E58)*C28 -> 0.001652 | C57: =SUM(C34)*B57 -> 6608 | D57: Alternate Gross | E57: 0.00572 | F57: 0.00176
D58: Alternate Net | E58: 0.00472 | F58: 0.00176
A60: Disclaimer: This calculator is for internal purposes only and is to be used as a guide. Any decision made off the back of the numbers emanating from this calculator shall be the responsibility of the user. Whilst every effort has been made to ensure the accuracy of this calculator LJ Hooker Home Loans does not guarantee its workings.
